Cogmind - Beta 13 @@@ ROGUE MODE // 2024.04.19 @ 14:13:51 Player: AshCrow Result: Destroyed by G-47 Trooper with Particle Gun Performance ------------- Evolutions (2) 1000 Regions Visited (4) 800 Robots Destroyed (29) 145 Value Destroyed (997) 997 Prototype IDs (0) 0 Alien Tech Used (0) 0 Bonus (-194) -194 TOTAL SCORE: 2748 Bonus ------- High Alert Combat Kills 11 Friendly Fire -205 Cogmind --------- Core Integrity 0/550 Matter 176/300 Energy 60/100 System Corruption 1% Temperature Danger (416) Movement Core (100) Ox1 Location -8/Materials Parts ------- > --- POWER (1) -------- (None) > --- PROPULSION (4) --- (None) > --- UTILITY (3) ------ Improved Sensor Array Advanced Targeting Computer > --- WEAPON (3) ------- Heavy Laser > --- INVENTORY (5) ---- High-capacity Storage Unit Peak State ------------ > --- POWER ------------ Light Nuclear Core > --- PROPULSION ------- Aluminum Leg Aluminum Leg Carbon-fiber Leg > --- UTILITY ---------- Compact Matter Pod Advanced Targeting Computer Hardened Medium Armor Plating > --- WEAPON ----------- Battle Rifle Subdweller Machine Gun Battle Cannon > --- INVENTORY -------- High-capacity Storage Unit Improved Sensor Array Scrap Shield Heavy Assault Rifle [Rating: 24] Favorites ----------- Power Subdweller Power Source Engine Subdweller Power Source Power Core Light Nuclear Core Propulsion Aluminum Leg Leg Aluminum Leg Wheel Compact Wheel Utility Scrap Shield Device Subdweller Optics Storage Small Storage Unit Processor Advanced Targeting Computer Protection Scrap Shield Weapon Battle Cannon Energy Gun Heavy Laser Ballistic Gun Battle Rifle Ballistic Cannon Battle Cannon Launcher Grenade Launcher Build | -11 -10 -10 -10 -8 ------- Run | Yrd Mat Min Sub Mat Slots Evolved 4 | . . . . 4 Power . | . . . . . Propulsion 2 | . . . . 2 Utility 1 | . . . . 1 Weapon 1 | . . . . 1 Parts Attached 42 | 6 2 10 12 12 Power 6 | 1 . 1 3 1 Engine 5 | 1 . 1 3 . Core 1 | . . . . 1 Reactor . | . . . . . Propulsion 8 | 4 . 2 1 1 Treads . | . . . . . Leg 6 | 2 . 2 1 1 Wheel 2 | 2 . . . . Hover . | . . . . . Flight . | . . . . . Utility 11 | 1 . 1 4 5 Device 3 | . . 1 1 1 Storage 3 | 1 . . 1 1 Processor 1 | . . . . 1 Hackware . | . . . . . Protection 4 | . . . 2 2 Artifact . | . . . . . Weapon 17 | . 2 6 4 5 Energy Gun 2 | . . . . 2 Energy Cannon . | . . . . . Ballistic Gun 10 | . 2 3 3 2 Ballistic Cannon 2 | . . . 1 1 Launcher 3 | . . 3 . . Special Weapon . | . . . . . Impact Weapon . | . . . . . Slashing Weapon . | . . . . . Piercing Weapon . | . . . . . Special Melee Weapon . | . . . . . Unidentified Prototypes . | . . . . . Parts Lost 20 | . . 6 2 12 Power 3 | . . 2 . 1 Propulsion 6 | . . 2 1 3 Utility 4 | . . 1 . 3 Weapon 7 | . . 1 1 5 Highest Loss Streak 12 | . . 5 2 12 To Critical Strikes . | . . . . . Average Slot Usage (%) 82 | . 78 80 83 75 Engine 11 | . 14 7 13 6 Leg 26 | . 28 26 27 18 Device 1 | . . 5 . . Storage 3 | . 14 14 1 7 Processor 1 | . . . . 8 Protection 10 | . . . 12 8 Ballistic Gun 13 | . 21 20 12 16 Ballistic Cannon 10 | . . . 11 7 Launcher 2 | . . 5 2 . Naked Turns . | . . . . . Heaviest Build 32 | 8 11 13 28 32 Greatest Support 35 | 26 20 20 25 35 Greatest Overweight (x) 5 | . . 1 2 5 Average Overweight (x) . | . . . . . Largest Inventory Capacity 8 | 8 8 8 8 5 Average Capacity 5 | 6 8 8 5 5 Most Carried 8 | 5 4 6 8 5 Average Carried 4 | 2 3 4 5 4 Final Capacity 8 | 8 8 8 5 5 Final Carried 4 | 3 4 1 4 1 Class Distribution -------------------- 82% | Mutant 10% | Scavenger-Gunner 5% | Scavenger-Mutant Dominant Class ---------------- Mutant | -10/Materials Mutant | -10/Mines Mutant | -10/Subcaves Scavenger-Gunner | -8/Materials Resources | -11 -10 -10 -10 -8 ----------- Run | Yrd Mat Min Sub Mat Matter Collected 1109 | 260 52 57 406 334 Remotely . | . . . . . Salvage Created 914 | . 68 42 349 455 Parts 56 | . 4 3 25 24 Haulers Intercepted . | . . . . . Recyclers Shooed 1 | . 1 . . . Parts Field Recycled . | . . . . . Retrieved Matter . | . . . . . Parts Self-Destructed 24 | . . . 24 . Prevented . | . . . . . Kills | -11 -10 -10 -10 -8 ------- Run | Yrd Mat Min Sub Mat Combat Hostiles Destroyed 34 | . 2 10 10 12 Guns 15 | . 2 2 3 8 Cannons 5 | . . . 1 4 AOE 14 | . . 8 6 . Classes Destroyed 6 | . 1 2 1 2 Swarmer 6 | . . 3 . 3 Grunt 7 | . 2 . . 5 Sentry 3 | . . . . 3 Hunter 1 | . . . . 1 Subdweller 10 | . . . 10 . Assembled 6 | . . 6 . . Thug 1 | . . . 1 . Best Kill Streak 6 | . 1 6 6 3 Combat Bots Only 6 | . 1 6 6 3 Max Kills in Single Turn 6 | . 1 4 6 1 Gunslinging . | . . . . . Exploded 5 | . . 4 5 . Melee . | . . . . . Uniques/NPCs Destroyed 1 | . . 1 . . YI-UF0 (-10/Mines) Combat | -11 -10 -10 -10 -8 -------- Run | Yrd Mat Min Sub Mat Hostile Shots Fired 222 | . 8 26 23 165 Missed 64 | . 4 9 10 41 Damage Taken 2995 | . 41 555 499 1900 Core 809 | . 21 55 170 563 Absorbed by Shields . | . . . . . Core Remaining (%) 50 | 100 . . 1 . Volleys Fired 79 | . 8 17 10 44 Largest 3 | . 2 2 2 3 Hottest 94 | . 40 50 69 94 Shots Fired 177 | . 16 26 23 112 Gun 123 | . 16 19 8 80 Cannon 43 | . . . 11 32 Launcher 11 | . . 7 4 . Special . | . . . . . Kinetic 162 | . 16 19 19 108 Thermal 4 | . . . . 4 Explosive 11 | . . 7 4 . Electromagnetic . | . . . . . Robot Hit Streak 11 | . 5 3 5 11 Robot Miss Streak 6 | . 3 3 1 6 Penetration Max . | . . . . . Secondary Targets . | . . . . . Shots Hit Robots 92 | . 8 12 14 58 Core Hits 75 | . 5 20 22 28 Critical Kills 2 | . . . . 2 Critical Parts Destroyed 1 | . . . . 1 Critical Strikes 5 | . . . . 5 Destroy 3 | . . . . 3 Blast 2 | . . . . 2 Melee Attacks . | . . . . . Impact . | . . . . . Slashing . | . . . . . Piercing . | . . . . . Sneak Attacks . | . . . . . Combat Hostiles . | . . . . . Follow-up Attacks . | . . . . . Damage Inflicted 2686 | . 93 510 920 1163 Guns 1085 | . 93 88 87 817 Cannons 454 | . . . 116 338 Explosions 1139 | . . 422 717 . Melee . | . . . . . Ramming 8 | . . . . 8 Kinetic 1482 | . 93 88 203 1098 Thermal 57 | . . . . 57 Explosive 1139 | . . 422 717 . Electromagnetic . | . . . . . Impact . | . . . . . Slashing . | . . . . . Piercing . | . . . . . Highest Corruption 10 | . . 10 10 1 Average Corruption 9 | . . 10 10 1 Corruption Purged . | . . . . . Corruption Blocked . | . . . . . Effects 88 | . . 1 87 . Message Errors 20 | . . . 20 . Matter Fused 17 | . . . 17 . Heat Flow Errors 10 | . . . 10 . Energy Discharges 11 | . . . 11 . Data Loss (minor) 16 | . . 1 15 . Data Loss (major) 5 | . . . 5 . Misfires 5 | . . . 5 . Alerts 3 | . . . 3 . Weapon Failures 1 | . . . 1 . Overload Shots . | . . . . . Overflow Damage 17 | . . 4 . 13 Projectiles 13 | . . . . 13 Explosions 4 | . . 4 . . Melee . | . . . . . Knockbacks 6 | . . . 1 5 Impact . | . . . . . Kinetic 4 | . . . 1 3 Secondary 2 | . . . . 2 Self-Inflicted Damage 109 | . . 58 48 3 Shots 5 | . . 3 2 . Rammed 4 | . . . . 4 Targets Rammed 4 | . . . . 4 Kicked . | . . . . . Crushed . | . . . . . Highest Temperature 437 | . 6 31 256 437 Average Temperature 131 | . 6 11 102 153 Received Heat Transfer 1150 | . 24 40 6 1080 Effects 3 | . . . . 3 Energy Bleed 1 | . . . . 1 Short Circuit 2 | . . . . 2 Siege Activations . | . . . . . Robots Corrupted . | . . . . . Combat Hostiles . | . . . . . Parts Fried . | . . . . . Impact Corruptions 1 | . . . . 1 Robots Melted . | . . . . . Combat Hostiles . | . . . . . Parts Melted . | . . . . . Heat Transferred 111 | . . . . 111 Parts Sabotaged . | . . . . . Parts Stolen . | . . . . . Parts Stripped . | . . . . . Power Chain Reactions . | . . . . . Alert | -11 -10 -10 -10 -8 ------- Run | Yrd Mat Min Sub Mat Peak Influence 408 | . 95 136 . 408 Initial 36 | . . 36 . . Average 131 | . 56 123 . 176 Maximum Alert Level 2 | . . . . 2 Low Security (%) 80 | 100 100 100 . 60 Level 1 18 | . . . . 39 Level 2 . | . . . . . Level 3 . | . . . . . Level 4 . | . . . . . Level 5 . | . . . . . High Security . | . . . . . Max Security . | . . . . . Squads Dispatched 5 | . 2 . . 3 Investigation . | . . . . . Extermination . | . . . . . Reinforcement 3 | . 2 . . 1 Assault . | . . . . . Garrison 2 | . . . . 2 Intercept . | . . . . . Searches Triggered . | . . . . . Construction Impeded . | . . . . . Haulers Reinforced . | . . . . . Active Scanning Responses . | . . . . . Cargo Convoy Interrupts . | . . . . . Stealth | -11 -10 -10 -10 -8 --------- Run | Yrd Mat Min Sub Mat Distress Signals 4 | . . 1 . 3 Communications Jammed . | . . . . . Distress Signals . | . . . . . Times Spotted 68 | . 6 15 16 31 Peak Tracking Total 11 | . 3 8 7 11 Tactical Retreats 3 | . . 2 . 1 Traps | -11 -10 -10 -10 -8 ------- Run | Yrd Mat Min Sub Mat Traps Triggered . | . . . . . Indirectly . | . . . . . Trap Hack Attempts . | . . . . . Triggered . | . . . . . Disarmed . | . . . . . Reprogrammed . | . . . . . Reused . | . . . . . Traps Extracted . | . . . . . Installed . | . . . . . Triggered 4 | . . . 4 . Machines | -11 -10 -10 -10 -8 ---------- Run | Yrd Mat Min Sub Mat Machines Disabled 4 | . . 1 . 3 Max in Single Turn 1 | . . 1 . 1 Machines Repaired . | . . . . . Machines Dismantled . | . . . . . Machines Sabotaged . | . . . . . Overloaded Fab Kills . | . . . . . Hacking | -11 -10 -10 -10 -8 --------- Run | Yrd Mat Min Sub Mat Machines Accessed 2 | . . . 1 1 Terminals . | . . . . . Fabricators . | . . . . . Repair Stations . | . . . . . Recycling Units . | . . . . . Scanalyzers . | . . . . . Garrison Access 1 | . . . . 1 Total Hacks 4 | . . . 1 3 Successful 2 | . . . 1 1 Failed 2 | . . . . 2 Catastrophic . | . . . . . Database Lockouts . | . . . . . Manual 1 | . . . 1 . Terminals . | . . . . . Fabricators . | . . . . . Repair Stations . | . . . . . Recycling Units . | . . . . . Scanalyzers . | . . . . . Garrison Access 3 | . . . . 3 Terminal Hacks 1 | . . . 1 . Record 1 | . . . 1 . Fabricator Hacks . | . . . . . Repair Station Hacks . | . . . . . Recycling Unit Hacks . | . . . . . Scanalyzer . | . . . . . Garrison Access Hacks 1 | . . . . 1 Unlock Access 1 | . . . . 1 Unauthorized Hacks . | . . . . . Terminals . | . . . . . Fabricators . | . . . . . Repair Stations . | . . . . . Recycling Units . | . . . . . Scanalyzers . | . . . . . Garrison Access . | . . . . . Data Cores Recovered . | . . . . . Used . | . . . . . Hacking Detections 1 | . . . . 1 Full Trace Events . | . . . . . Feedback Events . | . . . . . Feedback Blocked . | . . . . . Robot Schematics Acquired . | . . . . . Robots Built . | . . . . . Authchips . | . . . . . Time . | . . . . . Total Robot Build Rating . | . . . . . Part Schematics Acquired . | . . . . . Parts Built . | . . . . . Authchips . | . . . . . Time . | . . . . . Total Part Build Rating . | . . . . . Parts Repaired . | . . . . . Time . | . . . . . Parts Recycled . | . . . . . Recycled Matter . | . . . . . Retrieved Matter . | . . . . . Retrieved Components . | . . . . . Parts Scanalyzed . | . . . . . Part Schematics Acquired . | . . . . . Parts Damaged . | . . . . . Bothacking | -11 -10 -10 -10 -8 ------------ Run | Yrd Mat Min Sub Mat Used RIF Installer . | . . . . . Robots Hacked . | . . . . . Non-combat . | . . . . . Combat . | . . . . . Robot Hacks Applied . | . . . . . Relay Couplers Released . | . . . . . Fabnet Peak Effective % . | . . . . . Robots Rewired . | . . . . . Allies Hacked . | . . . . . Hacks Repelled . | . . . . . Allies | -11 -10 -10 -10 -8 -------- Run | Yrd Mat Min Sub Mat Total Allies . | . . . . . Largest Group . | . . . . . Highest-Rated Group . | . . . . . Highest-Rated Ally . | . . . . . Total Orders . | . . . . . Ally Attacks . | . . . . . Total Damage . | . . . . . Kills . | . . . . . Allies Corrupted . | . . . . . Allies Melted . | . . . . . Intel | -11 -10 -10 -10 -8 ------- Run | Yrd Mat Min Sub Mat Robot Analysis Total . | . . . . . Derelict Logs Recovered 2 | . . 1 1 . Drone Launches . | . . . . . Drone Recoveries . | . . . . . Exploration | -11 -10 -10 -10 -8 ------------- Run | Yrd Mat Min Sub Mat Turns Passed 3473 | 66 121 284 2560 442 Spaces Moved 1944 | 48 71 186 1422 217 Core 25 | 7 . 14 . 4 Treads . | . . . . . Legs 1909 | 31 71 172 1422 213 Wheels 10 | 10 . . . . Hover . | . . . . . Flight . | . . . . . Fastest Speed 50 | 50 120 100 120 50 Average Speed 158 | 103 120 118 173 124 Slowest Speed 300 | 120 120 120 260 300 Overloaded Moves . | . . . . . Propulsion Burnouts . | . . . . . Robots Hopped . | . . . . . Cave-ins Triggered 1 | . . 1 . . Exploration Rate (%) 22 | 4 6 40 42 20 Regions Visited 4 Branch Regions 2 Pre-discovered Areas . | . . . . . Known Exits Taken . | . . . . . Unknown Exits Taken 4 | 1 1 1 1 . Scrap Searched 1 | . . 1 . . Spaces Dug . | . . . . . Terrain Destroyed 63 | . . 32 23 8 Melee . | . . . . . Projectile 8 | . . . . 8 AOE 55 | . . 32 23 . Terrain Rammed . | . . . . . Walls Destroyed . | . . . . . Machines Disabled . | . . . . . Actions | -11 -10 -10 -10 -8 --------- Run | Yrd Mat Min Sub Mat Total 2199 | 64 92 224 1513 306 Wait 63 | . 9 8 32 14 Move 1940 | 47 70 185 1421 217 Hop . | . . . . . Pick Up 45 | 9 3 3 20 10 Fast Attach . | . . . . . Attach 31 | 4 2 5 10 10 Detach 3 | . . . 2 1 Swap 11 | 2 . 5 2 2 Drop 20 | 2 . 1 13 4 Fire 79 | . 8 17 10 44 Melee . | . . . . . Ram 4 | . . . . 4 Kick . | . . . . . Crush . | . . . . . Escape Stasis . | . . . . . Rewire . | . . . . . Trap . | . . . . . Miscellaneous 3 | . . . 3 . Route ------- -11/Scrapyard -10/Materials -10/Mines -10/Subcaves -8/Materials (discovered 1 exit: Gar) History --------- Turn | Location | Event 3 | -11/Scrapyard | Discovered new exit (range 16) 67 | -11/Scrapyard | Entered Materials 92 | -10/Materials | Discovered new exit (range 7) 188 | -10/Materials | Entered Mines 217 | -10/Mines | Assembled infested the area 222 | -10/Mines | Assisted by a Guerilla fighting off Assembled 304 | -10/Mines | Build established: Mutant 369 | -10/Mines | YI-UF0 nonchalantly dropped a Grenade Launcher on the ground 410 | -10/Mines | Learned Materials terminal intel 439 | -10/Mines | Discovered new exit (range 8) 445 | -10/Mines | Destroyed YI-UF0 452 | -10/Mines | Crushed by falling debris 452 | -10/Mines | System corruption reached 10% 472 | -10/Mines | Entered Subcaves 483 | -10/Subcaves | Lost 5 parts (1p2n1u1w) 691 | -10/Subcaves | Ambushed by swarm of Subdwellers 691 | -10/Subcaves | Ambushed by Subdwellers from Twisted Machinery 691 | -10/Subcaves | Ambushed by Subdwellers from Twisted Machinery 693 | -10/Subcaves | Core integrity fell below 50% 696 | -10/Subcaves | Ambushed by Subdwellers from Twisted Machinery 860 | -10/Subcaves | Learned Materials security intel 901 | -10/Subcaves | A swath of the cavern ceiling suddenly collapsed 955 | -10/Subcaves | Core integrity fell below 20% 1000 | -10/Subcaves | Shifting Twisted Machinery released Sub. Beam Cannon 1002 | -10/Subcaves | Shifting Twisted Machinery released Sub. Power Source 1199 | -10/Subcaves | A swath of the cavern ceiling suddenly collapsed 1400 | -10/Subcaves | Visited Clippyterm 1669 | -10/Subcaves | Disturbed a concealed Subdweller 1947 | -10/Subcaves | Shifting Twisted Machinery released Battle Cannon 2991 | -10/Subcaves | Discovered new exit (range 6) 3032 | -10/Subcaves | Entered Materials 3032 | -8/Materials | Evolved 4 slots: Propulsion x2, Utility x1, Weapon x1 3034 | -8/Materials | Loaded intel: 12 terminal locations 3308 | -8/Materials | Garrison activated, responded to threat 3364 | -8/Materials | Identified exit to Garrison 3372 | -8/Materials | Build established: Scavenger-Gunner 3448 | -8/Materials | Garrison activated, responded to threat 3458 | -8/Materials | Core integrity fell below 50% 3470 | -8/Materials | Core integrity fell below 20% 3474 | -8/Materials | Destroyed by G-47 Trooper with Particle Gun Last Messages --------------- K-01 Serf collects debris. M-28 Smith repairs Aluminum Leg. K-01 Serf collects debris. Critical hit (Burn: +37). Scrap Shield destroyed. K-01 Serf collects debris. Hvy. Laser broken. Overheating: Short circuit. K-01 Serf collects debris. Critical hit (Burn: +37). Slammed into G-47 Trooper. Ramming works as a last resort when unarmed or blocked, but can have serious negative consequences. Imp. Sensor Array broken. Destabilizing: Short circuit. K-01 Serf collects debris. Slammed into G-47 Trooper. Destabilizing: System corrupted (+1). Slammed into G-47 Trooper. Map ----- +----------------------------------------------------+ | ?????????????????????????????????????????????????? | | ?????????????????????????????????????????????????? | | ?????????????????????????????????????????????????? | | ???????????????????????????????????????????????T?? | | ?????????????????????????????????????????????????? | | ?????????????????????????????????????????????????? | | ?????????????????????????????????????????????????? | | ?????????????????????????????????????????????????? | | ???????????????? ??????? ????????????????????? | | ???????????????# #?????? ?????????????????? | | ???????????????# #?????# ?????????????????? | | ???????????????# #?????# ?????????????????? | | ???????????????# #?????# ????????????????? | | ???????????????# #?????# ?????????????????? | | ???????????????# ####### ?????????????????? | | ???????????????#^ ^ #???????????????? | | ???????????????# #???????????????? | | ???????????????# """^ #???????????????? | | ???????###?????# "G" "" ^""" #???????????????? | | ???????? ??### ">" %"" " " #???????????????? | | ????????""""?# # " ^ " " #???????????????? | | ???????""""" ### g ##########??????? | | ????# """"" # || g k ?????? | | ????# / | Y g ?????? | | ????# """"" # |! =gg!= ?????? | | ???????""""??#* ########@gg###+########?????????? | | ????????"????# #??????# =#????????????????????? | | ?????????????# #??????# #????????????????????? | | ?????????????# [#??????# #????????????????????? | | ?????????????# #??????# #????????????????????? | | ?????????????# #??????# #????????????????????? | | ????????????## ##?????# #????????????????????? | | ????????????# #?????# #????????????????????? | | ????????????# #?????# #????????????????????? | | ????????????+ !* #?????# #????????????????????? | | ? ????????# ! #?????# #????????????????????? | | # #???????# =*[ #?????# #????????????????????? | | # #???????## ##?????# k#????????????????????? | | # #????????# #??????# +?"T"????????????????? | | # #????????# #??????# #?"""????????????????? | | # #????????# #??????# #????????????????????? | | # #????????# #??????# #####????????????????? | | # #????????# #??????# !!#????????????????? | | # #????????# #??????# !!#???????????????T? | | # ^ #????????# ##?????# !!#????????????????? | | # #????????# ## ????# !!#????????????????? | | # #????????# ## ???# ==#????????????????? | | # #????????# #? ??# =??????????????????? | | ########## ####+### #????????????????????? | | #????????????????????? | +----------------------------------------------------+ Best States ------------- Heat Dissipation 31 Energy Generation 15 Energy Capacity 200 Matter Stores 300 Matter Capacity 450 Sight Range 21 Robot Scan Range 14 Terrain Scan Density 10 Armor Coverage 800 Evasion (%) 55 Targeting Accuracy 8 Item Schematics ----------------- None Robot Schematics ------------------ None Fabricated ------------ Nothing Alien Tech Used ----------------- None Achievements -------------- Backstab Close Call I Survived The Infestation Maybe Next Time I'll Detach My Launcher Quick And Dirty Storm Trooper System Compromised Unlikely Earthworm Challenges ------------ None Game ------ Seed BoreMatterDrive Manual? 0 Play Time 00:54:34 Cumulative 3.9 hours Start 2024.04.19 @ 13:14:41 End 2024.04.19 @ 14:13:51 Sessions 1 Manual Loads 0 Difficulty Rogue Special Mode None Game No. 5 Rogue 5 Adventurer 0 Explorer 0 Win Type - Total 0 Types 0/0/0/0/0/0/0/0/0 Lore% 11 Gallery% 6 Achievement% 8 Wizard Run 0 Options --------- Layout 1 ASCII 0 Keyboard 0 Movement Numpad Keybinds 0 Fullscreen 1 Font 24/Smallcaps Map View 50x35 Zoom Use 0% Tactical HUD 0 Map Filters NONE Filters NONE Steam 1 RUN: 77660710-302d-4d13-9b84-6928e7f8cdd2